fUSD/lending_fUSD_20250823
["ID","MTS","AMOUNT","RATE_DAILY","PERIOD"]
[380968272,1755913129616,-400.0,0.00013698,2]
[380968273,1755913129637,-400.0,0.00013698,2]
[380968274,1755913129659,-400.0,0.00013698,2]
[380968275,1755913129680,-400.0,0.00013698,2]
[380968276,1755913129701,-403.15350419,0.00013698,2]
[380968277,1755913129722,-718.57,0.00013698,2]
[380968278,1755913129742,-400.0,0.00013698,2]
[380968279,1755913129763,-400.0,0.00013698,2]
[380968280,1755913129784,-554.08,0.00013698,2]
[380968281,1755913129805,-400.0,0.00013698,2]
[380968282,1755913129826,-400.0,0.00013698,2]
[380968283,1755913129846,-403.28713666,0.00013698,2]
[380968284,1755913129868,-400.0,0.00013698,2]
[380968285,1755913129891,-646.71,0.00013698,2]
[380968286,1755913129912,-400.0,0.00013698,2]
[380968287,1755913129932,-491.11857033,0.00013698,2]
[380968288,1755913129953,-400.0,0.00013698,2]
[380968289,1755913129974,-400.0,0.00013698,2]
[380968290,1755913129994,-402.39244177,0.00013698,2]
[380968291,1755913130015,-400.0,0.00013698,2]
[380968292,1755913130037,-400.0,0.00013698,2]
[380968293,1755913130058,-400.0,0.00013698,2]
[380968294,1755913130079,-402.28517227,0.00013698,2]
[380968295,1755913130099,-71.76234909,0.00013698,2]
[380968296,1755913185932,160.0,0.000287,120]
[380968297,1755913187388,160.0,0.000287,120]
[380968299,1755913281578,160.0,0.00028,120]
[380968300,1755913290769,163.0,0.000287,120]
[380968301,1755913308966,164.05,0.000287,120]
[380968302,1755913399097,641.78621112,0.000287,120]
[380968303,1755913432913,160.0,0.00012263,7]
[380968311,1755913477144,2000.0,0.00013697,7]
[380968312,1755913477454,2000.0,0.00013697,7]
[380968313,1755913477756,2000.0,0.00013697,7]
[380968314,1755913478957,2000.0,0.00013697,7]
[380968315,1755913479185,2000.0,0.00013697,7]
[380968316,1755913479503,2000.0,0.00013697,7]
[380968317,1755913479804,990.424,0.00013697,7]
[380968320,1755913633808,200.0,0.000138,5]
[380968322,1755913635913,500.0,0.000139,5]
[380968323,1755913638014,800.0,0.000147,5]
[380968324,1755913640131,1000.0,0.000148,5]
[380968325,1755913642233,1300.0,0.000149,5]
[380968329,1755913826726,215.6,0.0002874,120]
[380968335,1755913832370,-482.49099436,0.00010959,2]
[380968337,1755913832381,-269.47,0.00012224,2]
[380968339,1755913832391,-394.33777783,0.00012225,2]
[380968340,1755913832403,-292.69222217,0.00012225,2]
[380968341,1755913832413,-250.0,0.0001231,2]
[380968342,1755913832423,-1000.0,0.00012311,2]
[380968343,1755913832433,-2951.44802823,0.0001286,2]
[380968344,1755913832442,-1200.0,0.00012904,2]
[380968345,1755913832452,-150.0,0.00012905,2]
[380968346,1755913832462,-300.0,0.00012905,2]
[380968347,1755913832472,-26293.98460061,0.00012906,2]
[380968348,1755913832482,-166.64,0.00012906,2]
[380968349,1755913832491,-19210.47,0.00012906,2]
[380968350,1755913832503,-390.47584093,0.00013017,2]
[380968351,1755913832512,-500.0,0.00013017,2]
[380968352,1755913832522,-157.97,0.00013024,2]
[380968353,1755913832532,-302.47,0.00013025,2]
[380968354,1755913832541,-424.17,0.00013025,2]
[380968355,1755913832551,-427.38,0.00013025,2]
[380968356,1755913832561,-432.34,0.00013025,2]
[380968357,1755913832570,-426.29,0.00013025,2]
[380968358,1755913832580,-419.43,0.00013025,2]
[380968359,1755913832590,-301.6,0.00013025,2]
[380968360,1755913832599,-304.06,0.00013025,2]
[380968361,1755913832608,-426.05,0.00013025,2]
[380968363,1755913832618,-426.66,0.00013025,2]
[380968364,1755913832628,-431.71,0.00013025,2]
[380968365,1755913832638,-421.56,0.00013025,2]
[380968366,1755913832648,-301.94,0.00013026,2]
[380968367,1755913832657,-421.43,0.00013026,2]
[380968368,1755913832666,-429.56,0.00013026,2]
[380968369,1755913832676,-304.48,0.00013026,2]
[380968370,1755913832686,-426.08,0.00013027,2]
[380968371,1755913832695,-425.21,0.00013027,2]
[380968372,1755913832704,-426.74,0.00013027,2]
[380968373,1755913832714,-304.83,0.00013027,2]
[380968374,1755913832723,-416.93,0.00013028,2]
[380968375,1755913832733,-429.1,0.00013028,2]
[380968376,1755913832742,-425.83,0.00013029,2]
[380968377,1755913832752,-305.66,0.00013029,2]
[380968378,1755913832762,-418.98,0.0001303,2]
[380968379,1755913832772,-426.11,0.0001303,2]
[380968380,1755913832781,-305.55,0.0001303,2]
[380968381,1755913832791,-157.97,0.00013032,2]
[380968382,1755913832800,-423.71,0.00013034,2]
[380968384,1755913832810,-417.22,0.00013034,2]
[380968386,1755913832819,-157.97,0.0001304,2]
[380968388,1755913832828,-157.97,0.00013048,2]
[380968389,1755913832838,-157.97,0.00013056,2]
[380968390,1755913832847,-157.97,0.00013064,2]
[380968392,1755913832856,-500.0,0.00013072,2]
[380968394,1755913832865,-157.97,0.00013072,2]
[380968396,1755913832876,-157.97,0.00013081,2]
[380968398,1755913832888,-157.97,0.00013089,2]
[380968400,1755913832897,-500.0,0.00013127,2]
[380968402,1755913832907,-500.0,0.00013182,2]
[380968404,1755913832916,-500.0,0.00013237,2]
[380968406,1755913832926,-500.0,0.00013292,2]
[380968408,1755913832935,-500.0,0.00013347,2]
[380968410,1755913832945,-517.0540794,0.00013402,2]
[380968412,1755913832954,-1003.28795244,0.00013485,2]
[380968414,1755913832966,-489.33520023,0.0001352,2]
[380968416,1755913832976,-3764.9167,0.00013585,2]
[380968418,1755913832984,-2988.6684,0.00013585,2]
[380968420,1755913832994,-168.59486561,0.00013598,2]
[380968422,1755913833003,-12872.85156036,0.00013598,2]
[380968424,1755913833013,-162.43302701,0.00013598,2]
[380968426,1755913833023,-275.8227,0.00013598,2]
[380968428,1755913833032,-1000.0,0.00013598,2]
[380968430,1755913833043,-5000.0,0.00013598,2]
[380968432,1755913833053,-10005.04668508,0.000136,2]
[380968434,1755913833063,-501.33894569,0.00013673,2]
[380968436,1755913833072,-501.13480535,0.00013673,2]
[380968438,1755913833081,-501.26738785,0.00013673,2]
[380968440,1755913833091,-501.18918948,0.00013673,2]
[380968442,1755913833101,-500.0,0.00013673,2]
[380968444,1755913833110,-500.54772724,0.00013673,2]
[380968446,1755913833120,-500.0,0.00013673,2]
[380968448,1755913833129,-160.1002852,0.00013673,2]
[380968450,1755913833138,-500.0,0.00013673,2]
[380968451,1755913833148,-172.93219222,0.00013673,2]
[380968453,1755913833157,-151.9869756,0.00013673,2]
[380968455,1755913833166,-501.57561073,0.00013673,2]
[380968456,1755913833175,-500.0,0.00013673,2]
[380968457,1755913833184,-160.0,0.0001369,2]
[380968458,1755913833194,-160.0,0.0001369,2]
[380968459,1755913833204,-160.0,0.0001369,3]
[380968460,1755913833214,-160.0,0.0001369,3]
[380968461,1755913833223,-160.0,0.0001369,3]
[380968462,1755913833233,-160.0,0.0001369,2]
[380968463,1755913833242,-500.0,0.00013697,2]
[380968464,1755913833252,-180.87961799,0.00013697,2]
[380968465,1755913833262,-403.11978401,0.00013698,2]
[380968466,1755913833271,-400.0,0.00013698,2]
[380968467,1755913833280,-400.0,0.00013698,2]
[380968468,1755913833289,-400.0,0.00013698,2]
[380968469,1755913833298,-400.0,0.00013698,2]
[380968470,1755913833308,-400.0,0.00013698,2]
[380968471,1755913833318,-401.03078644,0.00013698,2]
[380968472,1755913833328,-402.05092896,0.00013698,2]
[380968473,1755913833337,-401.91175072,0.00013698,2]
[380968474,1755913833347,-400.0,0.00013698,2]
[380968475,1755913833356,-414.29726456,0.00013698,2]
[380968476,1755913833366,-428.82,0.00013698,2]
[380968477,1755913833375,-400.0,0.00013698,2]
[380968478,1755913833385,-400.0,0.00013698,2]
[380968479,1755913833394,-401.53678618,0.00013698,2]
[380968480,1755913833404,-1021.52,0.00013698,2]
[380968481,1755913833414,-400.0,0.00013698,2]
[380968482,1755913833424,-400.0,0.00013698,2]
[380968483,1755913833434,-400.0,0.00013698,2]
[380968484,1755913833444,-400.0,0.00013698,2]
[380968485,1755913833455,-400.0,0.00013698,2]
[380968486,1755913833475,-400.0,0.00013698,2]
[380968487,1755913833490,-400.0,0.00013698,2]
[380968488,1755913833500,-402.54686488,0.00013698,2]
[380968489,1755913833511,-400.0,0.00013698,2]
[380968490,1755913833521,-400.0,0.00013698,2]
[380968491,1755913833531,-402.823395,0.00013698,2]
[380968492,1755913833542,-400.0,0.00013698,2]
[380968493,1755913833552,-401.15279632,0.00013698,2]
[380968494,1755913833562,-400.0,0.00013698,2]
[380968495,1755913833573,-400.0,0.00013698,2]
[380968496,1755913833583,-850.01,0.00013698,2]
[380968497,1755913833593,-400.0,0.00013698,2]
[380968498,1755913833602,-400.0,0.00013698,2]
[380968499,1755913833612,-400.0,0.00013698,2]
[380968500,1755913833622,-436.74,0.00013698,2]
[380968501,1755913833632,-400.0,0.00013698,2]
[380968502,1755913833641,-628.35,0.00013698,2]
[380968503,1755913833650,-400.0,0.00013698,2]
[380968504,1755913833660,-703.68,0.00013698,2]
[380968505,1755913833669,-400.78586368,0.00013698,2]
[380968506,1755913833679,-400.0,0.00013698,2]
[380968507,1755913833689,-402.27801565,0.00013698,2]
[380968508,1755913833699,-576.98,0.00013698,2]
[380968509,1755913833708,-400.0,0.00013698,2]
[380968510,1755913833718,-158.11194405,0.00013698,2]
[380968511,1755913833746,-241.88805595,0.00013698,2]
[380968512,1755913833755,-402.93,0.00013698,2]
[380968513,1755913833765,-672.8,0.00013698,2]
[380968514,1755913833775,-401.7876448,0.00013698,2]
[380968515,1755913833785,-400.0,0.00013698,2]
[380968516,1755913833795,-400.0,0.00013698,2]
[380968517,1755913833805,-400.0,0.00013698,2]
[380968518,1755913833814,-400.0,0.00013698,2]
[380968519,1755913833824,-401.36446492,0.00013698,2]
[380968520,1755913833834,-400.0,0.00013698,2]
[380968521,1755913833843,-1000.0,0.00013698,2]
[380968522,1755913833853,-459.35,0.00013698,2]
[380968523,1755913833863,-400.0,0.00013698,2]
[380968524,1755913833872,-400.0,0.00013698,2]
[380968525,1755913833883,-640.17,0.00013698,2]
[380968526,1755913833895,-400.0,0.00013698,2]
[380968527,1755913833904,-400.0,0.00013698,2]
[380968528,1755913833914,-400.0,0.00013698,2]
[380968529,1755913833925,-403.28565603,0.00013698,2]
[380968530,1755913833936,-500.0,0.00013698,2]
[380968531,1755913833946,-400.0,0.00013698,2]
[380968532,1755913833955,-500.0,0.00013698,2]
[380968533,1755913833965,-500.0,0.00013698,2]
[380968534,1755913833978,-500.0,0.00013698,2]
[380968535,1755913833991,-500.0,0.00013698,2]
[380968536,1755913834002,-500.0,0.00013698,2]
[380968537,1755913834013,-500.0,0.00013698,2]
[380968538,1755913834022,-500.0,0.00013698,2]
[380968539,1755913834032,-503.02307127,0.00013698,2]
[380968540,1755913834043,-400.0,0.00013698,2]
[380968541,1755913834052,-400.0,0.00013698,2]
[380968542,1755913834062,-400.0,0.00013698,2]
[380968543,1755913834073,-400.0,0.00013698,2]
[380968544,1755913834083,-400.0,0.00013698,2]
[380968545,1755913834092,-400.0,0.00013698,2]
[380968546,1755913834102,-400.0,0.00013698,2]
[380968547,1755913834111,-400.0,0.00013698,2]
[380968548,1755913834121,-401.98431433,0.00013698,2]
[380968549,1755913834131,-400.0,0.00013698,2]
[380968550,1755913834140,-400.0,0.00013698,2]
[380968551,1755913834150,-400.0,0.00013698,2]
[380968552,1755913834160,-400.0,0.00013698,2]
[380968553,1755913834170,-400.0,0.00013698,2]
[380968554,1755913834180,-400.0,0.00013698,2]
[380968555,1755913834190,-400.0,0.00013698,2]
[380968556,1755913834200,-401.71025155,0.00013698,2]
[380968557,1755913834210,-400.0,0.00013698,2]
[380968558,1755913834219,-400.0,0.00013698,2]
[380968559,1755913834229,-400.0,0.00013698,2]
[380968560,1755913834239,-400.0,0.00013698,2]
[380968561,1755913834249,-400.0,0.00013698,2]
[380968562,1755913834259,-400.0,0.00013698,2]
[380968563,1755913834269,-400.0,0.00013698,2]
[380968564,1755913834279,-531.18,0.00013698,2]
[380968565,1755913834289,-400.0,0.00013698,2]
[380968566,1755913834298,-400.0,0.00013698,2]
[380968567,1755913834308,-400.0,0.00013698,2]
[380968568,1755913834317,-400.0,0.00013698,2]
[380968569,1755913834327,-400.0,0.00013698,2]
[380968570,1755913834336,-400.0,0.00013698,2]
[380968571,1755913834346,-400.0,0.00013698,2]
[380968572,1755913834356,-400.0,0.00013698,2]
[380968573,1755913834366,-400.0,0.00013698,2]
[380968574,1755913834376,-400.0,0.00013698,2]
[380968575,1755913834386,-510.53,0.00013698,2]
[380968576,1755913834396,-400.0,0.00013698,2]
[380968577,1755913834406,-400.0,0.00013698,2]
[380968578,1755913834416,-400.0,0.00013698,2]
[380968579,1755913834425,-431.03,0.00013698,2]
[380968580,1755913834435,-400.0,0.00013698,2]
[380968581,1755913834445,-61.30332017,0.00013698,2]
[380968582,1755913834462,-338.69667983,0.00013698,2]
[380968583,1755913834472,-400.0,0.00013698,2]
[380968584,1755913834482,-400.0,0.00013698,2]
[380968585,1755913834492,-400.0,0.00013698,2]
[380968586,1755913834502,-400.0,0.00013698,2]
[380968587,1755913834511,-400.0,0.00013698,2]
[380968588,1755913834522,-483.41,0.00013698,2]
[380968589,1755913834531,-400.0,0.00013698,2]
[380968590,1755913834541,-400.0,0.00013698,2]
[380968591,1755913834550,-400.0,0.00013698,2]
[380968592,1755913834560,-402.11010465,0.00013698,2]
[380968593,1755913834571,-400.0,0.00013698,2]
[380968594,1755913834581,-404.88416956,0.00013698,2]
[380968595,1755913834590,-403.55630772,0.00013698,2]
[380968596,1755913834600,-402.37882425,0.00013698,2]
[380968597,1755913834609,-400.0,0.00013698,2]
[380968598,1755913834618,-400.0,0.00013698,2]
[380968599,1755913834627,-402.84088638,0.00013698,2]
[380968600,1755913834637,-400.0,0.00013698,2]
[380968601,1755913834646,-1056.61,0.00013698,2]
[380968602,1755913834655,-400.0,0.00013698,2]
[380968603,1755913834664,-401.70683,0.00013698,2]
[380968604,1755913834673,-838.26,0.00013698,2]
[380968605,1755913834683,-400.0,0.00013698,2]
[380968606,1755913834693,-401.58735826,0.00013698,2]
[380968607,1755913834702,-400.0,0.00013698,2]
[380968608,1755913834711,-400.0,0.00013698,2]
[380968609,1755913834720,-400.0,0.00013698,2]
[380968610,1755913834730,-402.91248688,0.00013698,2]
[380968611,1755913834739,-423.47,0.00013698,2]
[380968612,1755913834749,-400.0,0.00013698,2]
[380968613,1755913834758,-401.69024688,0.00013698,2]
[380968614,1755913834767,-400.0,0.00013698,2]
[380968615,1755913834777,-484.92,0.00013698,2]
[380968616,1755913834786,-402.28349819,0.00013698,2]
[380968617,1755913834795,-400.0,0.00013698,2]
[380968618,1755913834805,-400.0,0.00013698,2]
[380968619,1755913834814,-400.0,0.00013698,2]
[380968620,1755913834824,-400.0,0.00013698,2]
[380968621,1755913834833,-402.64936838,0.00013698,2]
[380968622,1755913834842,-400.0,0.00013698,2]
[380968623,1755913834851,-400.0,0.00013698,2]
[380968624,1755913834861,-400.0,0.00013698,2]
[380968625,1755913834870,-548.41,0.00013698,2]
[380968626,1755913834879,-400.0,0.00013698,2]
[380968627,1755913834891,-403.25193988,0.00013698,2]
[380968628,1755913834900,-400.0,0.00013698,2]
[380968629,1755913834910,-400.0,0.00013698,2]
[380968630,1755913834919,-401.55431152,0.00013698,2]
[380968631,1755913834930,-400.0,0.00013698,2]
[380968632,1755913834940,-400.0,0.00013698,2]
[380968633,1755913834950,-402.51561688,0.00013698,2]
[380968634,1755913834959,-400.0,0.00013698,2]
[380968635,1755913834971,-402.20842198,0.00013698,2]
[380968636,1755913834981,-402.6941584,0.00013698,2]
[380968637,1755913834991,-400.0,0.00013698,2]
[380968638,1755913835001,-400.0,0.00013698,2]
[380968639,1755913835010,-400.0,0.00013698,2]
[380968640,1755913835020,-400.0,0.00013698,2]
[380968641,1755913835029,-400.0,0.00013698,2]
[380968642,1755913835039,-400.0,0.00013698,2]
[380968643,1755913835048,-400.0,0.00013698,2]
[380968644,1755913835058,-400.0,0.00013698,2]
[380968645,1755913835067,-400.0,0.00013698,2]
[380968646,1755913835077,-400.0,0.00013698,2]
[380968647,1755913835086,-400.0,0.00013698,2]
[380968648,1755913835097,-400.0,0.00013698,2]
[380968649,1755913835107,-400.0,0.00013698,2]
[380968650,1755913835117,-400.0,0.00013698,2]
[380968651,1755913835127,-400.0,0.00013698,2]
[380968652,1755913835137,-400.0,0.00013698,2]
[380968653,1755913835146,-402.70633524,0.00013698,2]
[380968654,1755913835156,-400.0,0.00013698,2]
[380968655,1755913835167,-400.0,0.00013698,2]
[380968656,1755913835177,-400.0,0.00013698,2]
[380968657,1755913835186,-400.0,0.00013698,2]
[380968658,1755913835197,-412.79785568,0.00013698,2]
[380968659,1755913835209,-400.0,0.00013698,2]
[380968660,1755913835220,-400.0,0.00013698,2]
[380968661,1755913835230,-181.41071071,0.00013698,2]
[380968662,1755913835240,-400.0,0.00013698,2]
[380968663,1755913835251,-402.72869227,0.00013698,2]
[380968664,1755913835261,-400.0,0.00013698,2]
[380968665,1755913835270,-400.0,0.00013698,2]
[380968666,1755913835280,-400.0,0.00013698,2]
[380968667,1755913835292,-400.0,0.00013698,2]
[380968668,1755913835302,-400.0,0.00013698,2]
[380968669,1755913835313,-400.0,0.00013698,2]
[380968670,1755913835322,-400.0,0.00013698,2]
[380968671,1755913835332,-400.0,0.00013698,2]
[380968672,1755913835342,-401.7764959,0.00013698,2]
[380968673,1755913835352,-400.0,0.00013698,2]
[380968674,1755913835362,-400.0,0.00013698,2]
[380968675,1755913835371,-400.0,0.00013698,2]
[380968676,1755913835381,-400.0,0.00013698,2]
[380968677,1755913835391,-400.0,0.00013698,2]
[380968678,1755913835401,-400.0,0.00013698,2]
[380968679,1755913835411,-407.27087794,0.00013698,2]
[380968680,1755913835421,-400.0,0.00013698,2]
[380968681,1755913835431,-400.0,0.00013698,2]
[380968682,1755913835441,-400.0,0.00013698,2]
[380968683,1755913835450,-400.0,0.00013698,2]
[380968684,1755913835460,-400.0,0.00013698,2]
[380968685,1755913835469,-400.0,0.00013698,2]
[380968686,1755913835479,-400.0,0.00013698,2]
[380968687,1755913835489,-400.0,0.00013698,2]
[380968688,1755913835499,-400.0,0.00013698,2]
[380968689,1755913835509,-623.13,0.00013698,2]
[380968690,1755913835518,-400.0,0.00013698,2]
[380968691,1755913835527,-400.87492975,0.00013698,2]
[380968692,1755913835537,-400.0,0.00013698,2]
[380968693,1755913835547,-421.79,0.00013698,2]
[380968694,1755913835557,-400.0,0.00013698,2]
[380968695,1755913835566,-400.0,0.00013698,2]
[380968696,1755913835576,-826.4,0.00013698,2]
[380968697,1755913835586,-400.0,0.00013698,2]
[380968698,1755913835595,-400.0,0.00013698,2]
[380968699,1755913835605,-202.14953133,0.00013698,2]
[380968700,1755913835615,-400.0,0.00013698,2]
[380968701,1755913835624,-400.0,0.00013698,2]
[380968702,1755913835634,-400.0,0.00013698,2]
[380968703,1755913835644,-400.0,0.00013698,2]
[380968704,1755913835654,-400.0,0.00013698,2]
[380968705,1755913835665,-400.0,0.00013698,2]
[380968706,1755913835674,-400.0,0.00013698,2]
[380968707,1755913835684,-400.0,0.00013698,2]
[380968708,1755913835693,-400.0,0.00013698,2]
[380968709,1755913835703,-400.0,0.00013698,2]
[380968710,1755913835712,-400.0,0.00013698,2]
[380968711,1755913835721,-423.83,0.00013698,2]
[380968712,1755913835731,-400.0,0.00013698,2]
[380968713,1755913835741,-400.0,0.00013698,2]
[380968714,1755913835751,-400.0,0.00013698,2]
[380968715,1755913835761,-413.10899706,0.00013698,2]
[380968716,1755913835770,-400.0,0.00013698,2]
[380968717,1755913835781,-400.0,0.00013698,2]
[380968718,1755913835790,-400.0,0.00013698,2]
[380968719,1755913835800,-400.0,0.00013698,2]
[380968720,1755913835810,-400.0,0.00013698,2]
[380968721,1755913835820,-400.0,0.00013698,2]
[380968722,1755913835829,-407.01486489,0.00013698,2]
[380968723,1755913835839,-407.0,0.00013698,2]
[380968724,1755913835848,-400.0,0.00013698,2]
[380968725,1755913835858,-401.66080144,0.00013698,2]
[380968726,1755913835868,-400.0,0.00013698,2]
[380968727,1755913835878,-400.0,0.00013698,2]
[380968728,1755913835889,-400.0,0.00013698,2]
[380968729,1755913835901,-400.0,0.00013698,2]
[380968730,1755913835910,-401.87425661,0.00013698,2]
[380968731,1755913835920,-400.0,0.00013698,2]
[380968732,1755913835930,-401.78255741,0.00013698,2]
[380968733,1755913835942,-285.36177593,0.00013698,2]
[380968734,1755913835968,-114.63822407,0.00013698,2]
[380968735,1755913835978,-400.0,0.00013698,2]
[380968736,1755913835988,-400.0,0.00013698,2]
[380968737,1755913835998,-400.0,0.00013698,2]
[380968738,1755913836008,-401.91787831,0.00013698,2]
[380968739,1755913836018,-400.0,0.00013698,2]
[380968740,1755913836028,-400.0,0.00013698,2]
[380968741,1755913836037,-400.0,0.00013698,2]
[380968742,1755913836047,-400.0,0.00013698,2]
[380968743,1755913836057,-401.26699429,0.00013698,2]
[380968744,1755913836066,-405.71470661,0.00013698,2]
[380968745,1755913836076,-400.0,0.00013698,2]
[380968746,1755913836085,-478.84,0.00013698,2]
[380968747,1755913836095,-699.87,0.00013698,2]
[380968748,1755913836332,-66.07708055,0.00013698,2]
[380968749,1755913836859,-333.92291945,0.00013698,2]
[380968750,1755913836870,-400.0,0.00013698,2]
[380968751,1755913836879,-129.62980166,0.00013698,2]
[380968752,1755913836893,-270.37019834,0.00013698,2]
[380968753,1755913836905,-400.0,0.00013698,2]
[380968754,1755913836915,-400.0,0.00013698,2]
[380968755,1755913836925,-402.12698166,0.00013698,2]
[380968756,1755913836938,-400.0,0.00013698,2]
[380968757,1755913836948,-400.0,0.00013698,2]
[380968758,1755913836957,-400.0,0.00013698,2]
[380968759,1755913836967,-400.0,0.00013698,2]
[380968760,1755913836977,-400.0,0.00013698,2]
[380968761,1755913836986,-404.38033726,0.00013698,2]
[380968762,1755913836996,-400.0,0.00013698,2]
[380968763,1755913837006,-400.0,0.00013698,2]
[380968764,1755913837016,-400.0,0.00013698,2]
[380968765,1755913837025,-401.86523998,0.00013698,2]
[380968766,1755913837035,-401.76906955,0.00013698,2]
[380968767,1755913837044,-401.35194902,0.00013698,2]
[380968768,1755913837055,-400.0,0.00013698,2]
[380968769,1755913837066,-400.0,0.00013698,2]
[380968770,1755913837075,-400.0,0.00013698,2]
[380968771,1755913837085,-336.28287231,0.00013698,2]
[380968772,1755913837095,-400.0,0.00013698,2]
[380968773,1755913837104,-400.0,0.00013698,2]
[380968774,1755913837114,-400.0,0.00013698,2]
[380968775,1755913837123,-400.0,0.00013698,2]
[380968776,1755913837133,-400.0,0.00013698,2]
[380968777,1755913837143,-400.0,0.00013698,2]
[380968778,1755913837152,-400.0,0.00013698,2]
[380968779,1755913837162,-22.33739152,0.00013698,2]
[380968780,1755913837203,-377.66260848,0.00013698,2]
[380968781,1755913837213,-400.0,0.00013698,2]
[380968782,1755913837223,-401.60720533,0.00013698,2]
[380968783,1755913837233,-400.0,0.00013698,2]
[380968784,1755913837243,-367.82746508,0.00013698,2]
[380968793,1755913839094,-32.17253492,0.00013698,2]
[380968794,1755913839104,-400.0,0.00013698,2]
[380968795,1755913839114,-402.51578122,0.00013698,2]
[380968796,1755913839124,-400.0,0.00013698,2]
[380968797,1755913839133,-403.1539929,0.00013698,2]
[380968798,1755913839142,-332.63510489,0.00013698,2]
[380968799,1755913839151,-400.0,0.00013698,2]
[380968800,1755913839161,-400.0,0.00013698,2]
[380968801,1755913839170,-401.70329847,0.00013698,2]
[380968802,1755913839180,-517.23,0.00013698,2]
[380968803,1755913839190,-400.0,0.00013698,2]
[380968804,1755913839199,-400.0,0.00013698,2]
[380968805,1755913839208,-593.82,0.00013698,2]
[380968806,1755913839218,-400.0,0.00013698,2]
[380968807,1755913839227,-400.0,0.00013698,2]
[380968808,1755913839237,-402.22219616,0.00013698,2]
[380968809,1755913839246,-400.0,0.00013698,2]
[380968810,1755913839256,-400.79167133,0.00013698,2]
[380968811,1755913839266,-400.0,0.00013698,2]
[380968812,1755913839275,-553.41,0.00013698,2]
[380968813,1755913839285,-400.0,0.00013698,2]
[380968814,1755913839294,-400.0,0.00013698,2]
[380968815,1755913839304,-400.0,0.00013698,2]
[380968816,1755913839313,-76.34542011,0.00013698,2]
[380968817,1755913839326,-325.95744542,0.00013698,2]
[380968818,1755913839336,-400.0,0.00013698,2]
[380968819,1755913839345,-400.0,0.00013698,2]
[380968820,1755913839355,-400.0,0.00013698,2]
[380968821,1755913839364,-401.55255427,0.00013698,2]
[380968822,1755913839374,-402.01495321,0.00013698,2]
[380968823,1755913839383,-400.0,0.00013698,2]
[380968824,1755913839392,-611.05,0.00013698,2]
[380968825,1755913839402,-400.0,0.00013698,2]
[380968826,1755913839412,-423.01,0.00013698,2]
[380968827,1755913839422,-400.0,0.00013698,2]
[380968828,1755913839432,-400.0,0.00013698,2]
[380968829,1755913839441,-400.0,0.00013698,2]
[380968830,1755913839450,-402.73947589,0.00013698,2]
[380968831,1755913839459,-400.0,0.00013698,2]
[380968832,1755913839468,-401.43606933,0.00013698,2]
[380968833,1755913839477,-400.0,0.00013698,2]
[380968834,1755913839487,-400.0,0.00013698,2]
[380968835,1755913839496,-400.0,0.00013698,2]
[380968836,1755913839506,-400.0,0.00013698,2]